[Event "4th Tata Steel India Blitz Open 2022"]
[Site "Kolkota"]
[Date "2022.12.04"]
[Round "17.2"]
[White "Rameshbabu, Praggnanandhaa"]
[Black "Gukesh D"]
[Result "1-0"]
[ECO "A09"]
[WhiteElo "2678"]
[BlackElo "2725"]
[Annotator "TA"]
[PlyCount "137"]
[EventDate "2022.11.29"]
[EventType "tourn"]
[EventCountry "IND"]
[SourceTitle "playchess.com"]
[Source "ChessBase"]
[SourceQuality "1"]
[TimeControl "180+2"]

{[%evp 9,137,0,0,-3,-18,-11,0,-24,0,-26,-22,-22,-12,-4,-5,-37,-14,-9,0,-18,-12,-18,-23,-16,0,0,0,0,31,29,27,27,34,22,27,19,49,16,14,0,59,52,51,12,78,71,73,59,104,100,97,62,63,59,64,0,0,0,0,0,0,0,0,0,20,27,26,24,50,46,37,33,35,33,35,8,8,8,9,-8,53,14,19,8,19,0,0,0,8,8,8,8,35,8,10,9,54,54,92,59,76,76,106,27,65,0,107,119,312,39,65,8,8,8,8,8,8,8,8,8,8,8,8,8,29984,29985,29985,29986,29985,29986]} 1. Nf3 {[%emt 0:00:01] Marin,Mihail} d5 {[%emt 0:00:01]} 2. g3 {[%emt 0:00:01]} g6 {[%emt 0:00:03]} 3. c4 {[%emt 0:00:10]} dxc4 {[%emt 0:00:01]} 4. Na3 {[%emt 0:00:00]} Bg7 {[%emt 0:00:02]} 5. Nxc4 {[%emt 0:00:02]} Nc6 {[%emt 0:00:01]} 6. d3 {[%emt 0:00:01] A09: Réti Opening: 1 Nf3 d5 2 c4.} e5 {[%emt 0:00:03][%cal Oe5e4]} 7. Bd2 {[%emt 0:00:01] Inhibits e4.} Nge7 {[%emt 0:00:06][%cal Bg8e7,Be7d5,Bd5b6][%mdl 32]} 8. Bg2 {[%emt 0:00:01] The position is equal.} O-O {[%emt 0:00:02]} 9. Rc1 $5 {[%emt 0:00:02][%mdl 4] A promising side line.} a5 {[%emt 0:00:01]} 10. O-O {[%emt 0:00:02]} Be6 {[%emt 0:00:11]} 11. b3 {[%emt 0:00:31]} f6 {[%emt 0:00:05] [#]} 12. a3 $146 {[%emt 0:00:04]} ({Predecessor:} 12. Qc2 Qd7 13. Rfd1 Rfd8 14. Bc3 Nd5 15. Bb2 Bh6 16. e3 a4 17. a3 axb3 18. Qb1 Bf8 19. d4 exd4 20. Bxd4 Qf7 21. Qxb3 Nb6 22. Nfd2 Nxc4 23. Nxc4 Na5 {0-1 (23) Gledura,B (2589)-Nakamura,H (2785) Caleta 2017 CBM 177 [Marin,Mihail]}) 12... Nd5 {[%emt 0:00:40]} 13. Qc2 {[%emt 0:00:16]} Qd7 {[%emt 0:00:00]} 14. Qb1 {[%emt 0:00:09]} Qe7 {[%emt 0:00:16]} 15. Rfd1 {[%emt 0:00:13]} Rfd8 {[%emt 0:00:26]} 16. h3 {[%emt 0:00:18]} Ra6 {[%emt 0:00:02]} 17. e4 {[%emt 0:00:39]} Nb6 {[%emt 0:00:02]} 18. Be3 $1 {[%emt 0:00:06]} Nd7 {[%emt 0:00:32]} 19. a4 {[%emt 0:00:34]} Raa8 {[%emt 0:00:21]} 20. d4 {[%emt 0:00:02]} exd4 {[%emt 0:00:07]} 21. Nxd4 {[%emt 0:00:02]} Nxd4 {[%emt 0:00:04]} 22. Bxd4 {[%emt 0:00:11]} c6 {[%emt 0:00:10]} 23. Bb2 {[%emt 0:00:03]} Bf8 {[%emt 0:00:08]} 24. Qa1 {[%emt 0:00:08]} Bxc4 {[%emt 0:00:04]} ({Black should try} 24... Qg7 $11) 25. Rxc4 $14 {[%emt 0:00:03]} Ne5 {[%emt 0:00:01]} 26. Rcd4 {[%emt 0:00:01]} (26. Rcc1 $5 {[%cal Rf2f4]}) 26... Bg7 {[%emt 0:00:16]} (26... Rxd4 $11 {remains equal.} 27. Bxd4 Rd8) 27. f4 {[%emt 0:00:08] [#] Rxd8+ is the strong threat.} Nf7 {[%emt 0:00:01]} 28. Kh2 {[%emt 0:00:02]} Rxd4 {[%emt 0:00:05]} 29. Bxd4 {[%emt 0:00:02]} Rd8 {[%emt 0:00:01]} 30. Bb6 {[%emt 0:00:01]} Rxd1 {[%emt 0:00:01]} 31. Qxd1 {[%emt 0:00:01]} Qb4 {[%emt 0:00:04]} 32. Bc7 {[%emt 0:00:03]} (32. Bd4 $14) 32... Bf8 $11 {[%emt 0:00:01]} 33. e5 {[%emt 0:00:05]} fxe5 {[%emt 0:00:01]} 34. fxe5 {[%emt 0:00:01]} Qe7 {[%emt 0:00:01][%csl LRc7,LRe5] Against e6} 35. Bxa5 {[%emt 0:00:03]} Qxe5 {[%emt 0:00:01]} 36. Qe1 {[%emt 0:00:02]} Qxe1 {[%emt 0:00:08]} 37. Bxe1 {[%emt 0:00:01][%mdl 4096] Endgame KBB-KBN} Ne5 {[%emt 0:00:01]} 38. Be4 {[%emt 0:00:04]} Bd6 {[%emt 0:00:04]} 39. Kg2 {[%emt 0:00:00]} Kf7 {[%emt 0:00:02]} 40. Kf2 {[%emt 0:00:02]} Ke6 {[%emt 0:00:01]} 41. Ke3 {[%emt 0:00:02]} Nd7 {[%emt 0:00:01]} 42. Ke2 {[%emt 0:00:04]} Nc5 {[%emt 0:00:02]} 43. Bc2 {[%emt 0:00:01]} Kd5 {[%emt 0:00:02]} 44. g4 {[%emt 0:00:02]} Ke6 {[%emt 0:00:01]} (44... Ne6 $11) 45. Bc3 {[%emt 0:00:02]} Be5 {[%emt 0:00:03]} 46. Bd2 {[%emt 0:00:01]} Kd5 {[%emt 0:00:03]} 47. Kf3 {[%emt 0:00:03]} Ne6 {[%emt 0:00:02] White must now prevent ...Nd4+.} 48. Bd1 {[%emt 0:00:02]} Nd4+ {[%emt 0:00:02]} 49. Ke3 {[%emt 0:00:00]} c5 {[%emt 0:00:02]} 50. Kd3 {[%emt 0:00:03]} Bc7 {[%emt 0:00:03]} 51. h4 {[%emt 0:00:02]} Bd8 {[%emt 0:00:01]} 52. h5 {[%emt 0:00:00]} gxh5 {[%emt 0:00:01]} 53. gxh5 {[%emt 0:00:02]} Be7 {[%emt 0:00:02]} 54. Be3 {[%emt 0:00:01]} b6 {[%emt 0:00:01]} 55. Bf4 {[%emt 0:00:04]} Bf6 {[%emt 0:00:02]} 56. Bc7 {[%emt 0:00:01]} (56. h6 $16) 56... Kc6 {[%emt 0:00:01]} 57. Bf4 {[%emt 0:00:02]} Kd5 {[%emt 0:00:01]} 58. h6 {[%emt 0:00:02] Threatens to win with Bh5.} Be7 $2 {[%emt 0:00:02]} (58... Be5 $16 59. Bc1 Nf5) 59. Be3 $2 {[%emt 0:00:05]} (59. Bh5 $18) 59... Bf8 {[%emt 0:00:02]} 60. Bg4 {[%emt 0:00:03]} (60. b4 $14) 60... Nxb3 {[%emt 0:00:01]} 61. Bf5 {[%emt 0:00:01]} c4+ {[%emt 0:00:03]} 62. Kc3 {[%emt 0:00:00]} Nc5 $1 {[%emt 0:00:04]} 63. Bxh7 {[%emt 0:00:03] And now Bc2 would win. This pair of bishops is nice.} Nxa4+ {[%emt 0:00:01]} 64. Kc2 {[%emt 0:00:01]} b5 {[%emt 0:00:02]} 65. Bg8+ {[%emt 0:00:02]} Ke4 {[%emt 0:00:01]} 66. Bd2 {[%emt 0:00:03]} (66. h7 $5 Bg7 $8 67. Bd2 $11) 66... Nb6 $2 {[%emt 0:00:02][%mdl 8192] [#]} (66... Kf5 $11) 67. h7 $1 {[%emt 0:00:01] White mates.} Bg7 {[%emt 0:00:04]} 68. Bc3 {[%emt 0:00:01]} Bxc3 {[%emt 0:00:03]} 69. Kxc3 {[%emt 0:00:00] Weighted Error Value: White=0.26 (precise) /Black=0.17 (very precise)} 1-0

[Event "4th Tata Steel India Blitz Open 2022"]
[Site "Kolkota"]
[Date "2022.12.04"]
[Round "17.3"]
[White "Erigaisi Arjun"]
[Black "Nakamura, Hikaru"]
[Result "1-0"]
[ECO "E20"]
[WhiteElo "2718"]
[BlackElo "2768"]
[Annotator "TA"]
[PlyCount "93"]
[EventDate "2022.11.29"]
[EventType "tourn"]
[EventCountry "IND"]
[SourceTitle "playchess.com"]
[Source "ChessBase"]
[SourceQuality "1"]
[TimeControl "180+2"]

{[%evp 10,93,0,4,0,0,0,0,0,0,0,0,0,-6,10,0,-4,-21,0,14,11,-8,68,75,120,8,8,11,2,-7,-2,-2,-7,-76,10,9,12,12,8,10,20,0,0,-72,-55,-104,-13,-13,-14,-263,-263,-255,-247,-283,-240,-258,-277,-767,0,0,0,0,104,0,0,-104,-12,-127,4,-93,71,0,225,225,230,72,154,0,0,0,83,83,83,83,29972,29965]} 1. d4 {[%emt 0:00:01][%cal Bd2d4,Bd4d5][%mdl 32]} Nf6 {[%emt 0:00:00]} 2. c4 {[%emt 0:00:01]} e6 {[%emt 0:00:01]} 3. Nc3 {[%emt 0:00:01]} Bb4 {[%emt 0:00:01]} 4. f3 {[%emt 0:00:01]} c5 {[%emt 0:00:02]} 5. d5 {[%emt 0:00:01]} O-O {[%emt 0:00:02]} 6. e4 {[%emt 0:00:01]} b5 {[%emt 0:00:01] E20: Nimzo-Indian: 4 g3 and 4 f3.} 7. e5 {[%emt 0:00:01] Prevents d6.} Ne8 {[%emt 0:00:01]} 8. f4 {[%emt 0:00:02]} exd5 {[%emt 0:00:01] The position is equal.} 9. cxd5 {[%emt 0:00:01]} d6 {[%emt 0:00:00] Strongly threatening ...dxe5.} 10. Nf3 {[%emt 0:00:02]} c4 {[%emt 0:00:01]} 11. a4 {[%emt 0:00:01]} Nd7 {[%emt 0:00:06][%cal Bb8d7,Bd7f6,Bf6d5][%mdl 32]} 12. axb5 $5 {[%emt 0:00:03][%mdl 4] A promising side line.} dxe5 {[%emt 0:00:01]} 13. Bxc4 {[%emt 0:00:01]} Nd6 {[%emt 0:00:39]} (13... Qc7 {feels hotter.} 14. Be2 e4 15. Nd2 Qxf4 16. Nc4 Qh4+) 14. Be2 $1 {[%emt 0:00:03] [#]} (14. Nxe5 $2 Nxe5 15. Be2 Ng4 $1 {[%mdl 512]} 16. Bxg4 Qh4+ 17. g3 Qxg4 18. Qxg4 Bxg4 $19) 14... exf4 $146 {[%emt 0:00:02]} ({Predecessor:} 14... Qb6 15. Bd2 Bxc3 16. Bxc3 Ne4 17. Rf1 Nxc3 18. bxc3 Qc5 19. c4 Re8 20. Rf2 e4 21. Nd4 e3 22. Rf3 Nb6 23. Nc6 Re4 {½-½ (23) Erigaisi,A (2675)-Sadhwani,R (2628) Ciutadella de Menorca 2022}) 15. O-O $1 {[%emt 0:00:05]} Bb7 {[%emt 0:00:21]} (15... g5 $11) 16. Bxf4 $14 {[%emt 0:00:08]} Nf6 {[%emt 0:00:15]} 17. Bd3 {[%emt 0:00:25]} (17. Qd4 $16 Bxc3 18. bxc3) 17... Bxc3 $11 {[%emt 0:00:22]} 18. bxc3 {[%emt 0:00:01]} Nxd5 {[%emt 0:00:01]} 19. Bd2 $132 {[%emt 0:00:24][%mdl 2048] White is fighting back. This pair of bishops is nice.} Rc8 {[%emt 0:00:14] Prevents c4.} 20. Qc2 {[%emt 0:00:12]} (20. Rxa7 $2 Qb6+ 21. Kh1 Qxa7 $19) 20... h6 {[%emt 0:00:06]} 21. c4 {[%emt 0:00:27] [#]} (21. Rxa7 $2 Qb6+ 22. Kh1 Qxa7 $19) (21. Bh7+ Kh8 22. Bd3 (22. Rxa7 $2 Qb6+ 23. Kh1 Qxa7 $19) 22... Nb4 $17) (21. Kh1 $11) 21... Qb6+ {[%emt 0:00:01]} (21... Nxc4 $1 $17 {White must now prevent ...Nde3.} 22. Bxc4 Nb6) 22. Kh1 {[%emt 0:00:03] aiming for Qb3.} Ne3 {[%emt 0:00:01]} 23. Bxe3 {[%emt 0:00:01]} Qxe3 {[%emt 0:00:00]} 24. Rae1 {[%emt 0:00:09]} Qc5 {[%emt 0:00:19][%cal Of8e8]} 25. Ne5 {[%emt 0:00:38]} (25. Re5 {simplifies} Qc7 26. Rc1 a6 27. bxa6 Bxa6 28. c5) 25... Rfe8 {[%emt 0:00:07][%cal Bf8e8,Be8e7,Be7e3][%mdl 32]} 26. Qb2 {[%emt 0:00:06]} (26. Bh7+ Kh8 27. Nc6 (27. Nxf7+ $2 Nxf7 28. Rxe8+ Rxe8 $19) 27... Rxe1 28. Rxe1 Bxc6 29. bxc6 Qxc6 $17) (26. Nd7 $1 $11 Qc7 27. Ne5) 26... Rc7 {[%emt 0:00:03]} 27. Ng4 {[%emt 0:00:09]} (27. Re2 $15 {should be considered.}) 27... Rce7 {[%emt 0:00:06]} (27... Be4 $1 $17 {[%cal Re4d3]} 28. Qd2 Qd4) 28. Rxe7 {[%emt 0:00:02] Chess con chili.} Rxe7 {[%emt 0:00:00]} 29. h3 $2 {[%emt 0:00:12]} (29. Qf2 $11 {and White has nothing to worry.} Qa3 30. Rd1) 29... h5 $19 {[%emt 0:00:09]} (29... Nxc4 30. Qf2 Qxf2 31. Rxf2 $17) 30. Qf2 {[%emt 0:00:12]} Qg5 {[%emt 0:00:22]} ({Not} 30... Qa3 31. Qg3 Kf8 32. Nf2 $15) 31. Nh2 {[%emt 0:00:06]} Re3 {[%emt 0:00:19]} 32. h4 {[%emt 0:00:11]} Qe5 {[%emt 0:00:01]} 33. Rd1 {[%emt 0:00:03]} (33. c5 Qxc5 34. Nf3) 33... Ne4 $2 {[%emt 0:00:12]} (33... Rg3 $19 34. Bf1 Rh3) 34. Bxe4 $11 {[%emt 0:00:03]} Qxe4 {[%emt 0:00:01]} 35. Nf3 {[%emt 0:00:06] Prevents Qe5. And now Rd8+ would win.} f6 {[%emt 0:00:04]} (35... Qe8 $11) 36. Qg3 {[%emt 0:00:03]} (36. c5 $1 $16 {[%cal Rc5c6]} Kh7 37. c6) 36... Qe7 {[%emt 0:00:02]} 37. Rf1 {[%emt 0:00:04]} (37. Qd6 $11 {remains equal.}) 37... Re4 {[%emt 0:00:02]} (37... Bxf3 $17 38. Rxf3 Re4) 38. c5 {[%emt 0:00:02]} (38. Re1 $1 $11) 38... Bd5 {[%emt 0:00:02]} (38... Qxc5 $17 39. Qb8+ Bc8) 39. c6 {[%emt 0:00:02] [#]} (39. Rc1 $11) 39... Rc4 $2 {[%emt 0:00:01] [#]} (39... Qc5 $1 $17 {[%cal Rc5b5] keeps the pressure on.} 40. c7 Rc4) 40. Re1 {[%emt 0:00:01]} (40. Rd1 $1 $16 {[%cal Rd1d5]} Qf7 41. Qe1) 40... Qd8 {[%emt 0:00:09]} (40... Qb4 $11 {and Black is okay.} 41. c7 (41. Re8+ Kf7 $15) 41... Bxf3 42. Re8+ Kf7) 41. Rd1 $18 {[%emt 0:00:03]} Rc5 {[%emt 0:00:01]} 42. Qf2 $2 {[%emt 0:00:01]} (42. Qg6 $18 {and White stays clearly on top.}) 42... Rxb5 {[%emt 0:00:01]} ({Black should try} 42... Qe7) 43. Nd4 $2 {[%emt 0:00:02] White is more active.} (43. Qxa7 $16 {c7 is the strong threat.} Qa5 44. Qxa5 Rxa5 45. c7) 43... Bxc6 {[%emt 0:00:03] Threatens to win with ...Rb4.} 44. Rc1 {[%emt 0:00:02]} Be8 {[%emt 0:00:04]} (44... Bxg2+ $11 {keeps the balance.} 45. Kxg2 Qd5+ 46. Kg3 Rb4 47. Rc8+ Kf7 48. Rc7+ Kg8 49. Rc8+ Kf7) 45. Nxb5 $16 {[%emt 0:00:02]} Bxb5 {[%emt 0:00:01]} 46. Qxa7 {[%emt 0:00:01]} Be2 $2 {[%emt 0:00:02][%mdl 8192]} (46... Qd2 $16 47. Qa8+ Kf7 48. Qb7+ Kg6 49. Qe4+ Kf7 50. Rc7+ Bd7 51. Qc4+ Ke7) 47. Qa2+ {[%emt 0:00:02] White used his chance.   Weighted Error Value: White=0.59/Black=0.60} 1-0

[Event "4th Tata Steel India Blitz Open 2022"]
[Site "Kolkota"]
[Date "2022.12.04"]
[Round "17.4"]
[White "Maghsoodloo, Parham"]
[Black "Nihal Sarin"]
[Result "1-0"]
[ECO "E51"]
[WhiteElo "2720"]
[BlackElo "2670"]
[Annotator "TA"]
[PlyCount "61"]
[EventDate "2022.11.29"]
[EventType "tourn"]
[EventCountry "IND"]
[SourceTitle "playchess.com"]
[Source "ChessBase"]
[SourceQuality "1"]
[TimeControl "180+2"]

{[%evp 13,61,20,15,22,31,22,19,20,39,43,35,41,33,39,43,33,17,20,39,26,43,15,22,1,25,0,71,50,68,29,173,191,178,182,183,183,184,184,188,195,188,185,203,185,215,200,218,190,368,370]} 1. d4 {[%emt 0:00:02]} Nf6 {[%emt 0:00:01]} 2. c4 {[%emt 0:00:00]} e6 {[%emt 0:00:02]} 3. Nc3 {[%emt 0:00:02]} Bb4 {[%emt 0:00:01]} 4. Nf3 {[%emt 0:00:02]} d5 {[%emt 0:00:01]} 5. a3 {[%emt 0:00:03]} Bxc3+ {[%emt 0:00:03]} 6. bxc3 {[%emt 0:00:01]} c6 {[%emt 0:00:12]} 7. e3 {[%emt 0:00:07]} O-O {[%emt 0:00:03]} 8. a4 {[%emt 0:00:02] E51: Nimzo-Indian: Rubinstein: 4...0-0 5 Nf3 d5.} b6 {[%emt 0:00:01]} 9. Be2 $5 {[%emt 0:00:15][%mdl 4] A promising side line.} Ba6 {[%emt 0:00:01]} 10. Nd2 {[%emt 0:00:01] The position is equal.} Re8 {[%emt 0:00:04]} 11. O-O {[%emt 0:00:03]} Nbd7 {[%emt 0:00:04] [#]} 12. a5 $146 {[%emt 0:00:05]} ({Predecessor:} 12. Ba3 Qc7 13. Rc1 c5 14. Re1 Rac8 15. Bf1 Qb7 16. Qf3 Ne4 17. Nxe4 dxe4 18. Qd1 {½-½ (35) Kazhgaleyev,M (2569)-Ahmed,A (2231) Chess.com INT 2020}) 12... c5 {[%emt 0:00:18]} 13. axb6 {[%emt 0:00:02]} axb6 {[%emt 0:00:02] [#]} 14. Rxa6 $1 {[%emt 0:00:01]} Rxa6 {[%emt 0:00:01]} 15. cxd5 {[%emt 0:00:01]} Ra7 {[%emt 0:00:21]} 16. dxe6 {[%emt 0:00:01]} Rxe6 {[%emt 0:00:02]} 17. Bc4 {[%emt 0:00:03]} Re8 {[%emt 0:00:02]} 18. Qb3 {[%emt 0:00:01]} Qe7 {[%emt 0:00:07]} 19. e4 {[%emt 0:00:45] Hoping for e5.} cxd4 {[%emt 0:00:29]} (19... Nxe4 $2 20. Re1 (20. Nxe4 Qxe4 21. Bxf7+ Kh8 $18) 20... Ndf6 21. Nxe4 (21. Qxb6 Qc7 $17) (21. f3 Nxd2 22. Rxe7 Nxb3 $14) 21... Nxe4 22. f3 $18 (22. Qxb6 Raa8 $17)) (19... b5 $1 $11 20. Bxb5 Rb8) 20. cxd4 $16 {[%emt 0:00:00] Threatens to win with e5.} b5 $1 {[%emt 0:00:05] Prevents e5.} 21. Bd3 {[%emt 0:00:00] Black must now prevent e5.} (21. Qxb5 $5 {[%cal Re4e5]} Rb8 22. Qf5 $14) 21... b4 {[%emt 0:00:34] Loses the game.} (21... Qe6 $1 $11 {and Black is okay.}) 22. e5 $18 {[%emt 0:00:00]} Nxe5 {[%emt 0:00:16]} 23. dxe5 {[%emt 0:00:00]} Qxe5 {[%emt 0:00:01]} 24. Qxb4 {[%emt 0:00:00]} Rd7 {[%emt 0:00:07]} 25. Nf3 {[%emt 0:00:05]} Qd6 {[%emt 0:00:05]} 26. Qxd6 {[%emt 0:00:08]} Rxd6 {[%emt 0:00:01]} 27. Bc4 {[%emt 0:00:05]} h6 {[%emt 0:00:25]} 28. h3 {[%emt 0:00:06]} Nd7 {[%emt 0:00:02]} 29. Bb5 {[%emt 0:00:04]} Rd8 {[%emt 0:00:07]} 30. Bf4 {[%emt 0:00:05]} Rb6 {[%emt 0:00:04] [#]} (30... Rd5) 31. Bc7 {[%emt 0:00:02][%csl LRb6,LRd8] Weighted Error Value: White=0.10 (very precise) /Black=0.30} 1-0

[Event "4th Tata Steel India Blitz Open 2022"]
[Site "Kolkota"]
[Date "2022.12.04"]
[Round "17.5"]
[White "So, Wesley"]
[Black "Vidit, Santosh Gujrathi"]
[Result "0-1"]
[ECO "A21"]
[WhiteElo "2760"]
[BlackElo "2724"]
[Annotator "TA"]
[PlyCount "64"]
[EventDate "2022.11.29"]
[EventType "tourn"]
[EventCountry "IND"]
[SourceTitle "playchess.com"]
[Source "ChessBase"]
[SourceQuality "1"]
[TimeControl "180+2"]

{[%evp 9,64,12,15,14,39,17,23,16,29,14,10,11,14,11,13,5,6,0,0,-8,0,0,47,52,43,38,80,33,47,0,0,0,9,0,23,-12,0,0,-6,-876,-867,-1320,-1262,-1168,-1167,-1166,-1077,-29979,-29979,-29965,-2240,-6572,-29966,-29990,-29991,-29991,-29992]} 1. c4 {[%emt 0:00:02] ChessBase II} e5 {[%emt 0:00:01]} 2. Nc3 {[%emt 0:00:07]} Bb4 {[%emt 0:00:04]} 3. Nd5 {[%emt 0:00:09]} a5 {[%emt 0:00:01]} 4. a3 {[%emt 0:00:13]} Be7 {[%emt 0:00:32]} 5. Nf3 {[%emt 0:00:05]} d6 {[%emt 0:00:12]} 6. d4 {[%emt 0:00:16] A21: English Opening: 1...e5 2 Nc3.} Nd7 $5 {[%emt 0:00:02][%mdl 4] Exploring less charted territory.} 7. e3 {[%emt 0:00:35]} Ngf6 {[%emt 0:00:02]} 8. Nc3 {[%emt 0:00:18] White has an edge.} O-O {[%emt 0:00:08]} 9. Be2 {[%emt 0:00:03]} Re8 {[%emt 0:00:08]} 10. O-O {[%emt 0:00:01] [#]} Bf8 $146 {[%emt 0:00:01]} ({Predecessor:} 10... c6 11. b3 e4 12. Ne1 Nf8 13. f4 exf3 14. Bxf3 d5 15. Nd3 Ng6 16. g3 Be6 {0-1 (60) Spraggett,K (2539)-Kovalenko,I (2656) Cappelle la Grande 2015 EXT 2016 [ChessBase II]}) 11. Qc2 {[%emt 0:00:09]} c6 {[%emt 0:00:01]} 12. Rb1 {[%emt 0:00:06]} e4 {[%emt 0:00:11]} 13. Nd2 {[%emt 0:00:01][%cal Rd2e4]} d5 {[%emt 0:00:01]} 14. b4 {[%emt 0:00:01]} axb4 {[%emt 0:00:13]} 15. axb4 {[%emt 0:00:01][%cal Ba3b4,Bb4b5][%mdl 32]} Nb6 {[%emt 0:00:04]} (15... Bd6 $11) 16. c5 $14 {[%emt 0:00:07]} Nbd7 {[%emt 0:00:01]} 17. b5 {[%emt 0:00:01]} h5 {[%emt 0:00:02]} 18. Bb2 {[%emt 0:00:08]} (18. f3 $16) 18... Ng4 $1 {[%emt 0:00:13]} 19. Ra1 {[%emt 0:00:06]} (19. h3 $5 {[%cal Rh3g4]} Nh6 20. Ra1 (20. Bxh5 Nxc5 21. dxc5 Qg5 $11) 20... Rxa1 21. Rxa1 $14) 19... Rxa1 {[%emt 0:00:06]} 20. Rxa1 {[%emt 0:00:01] White wants to play h3.} Qh4 {[%emt 0:00:13][%csl LRf2,LRh2]} 21. Bxg4 {[%emt 0:00:02]} Qxg4 {[%emt 0:00:06]} 22. Ra8 {[%emt 0:00:14]} (22. h3 $5 {[%cal Rh3g4]} Qg6 23. Kf1 $14) 22... h4 {[%emt 0:00:11]} (22... Qg6 {simplifies} 23. Kf1 Nf6 24. bxc6 bxc6 25. Qa4 Qf5) 23. h3 {[%emt 0:00:06]} Qg6 {[%emt 0:00:01][%cal Od7b6] Threatens to win with ...Nb6!} 24. Qa4 $2 {[%emt 0:00:20][%mdl 8192] [#] White does not recover from this.} (24. Kf1 $11) 24... Nxc5 $1 $19 {[%emt 0:00:15][%mdl 512]} 25. dxc5 {[#]} (25. Qa1 Bxh3) 25... Bxh3 $1 {[%emt 0:00:02][%csl Gh3][%cal Rg6g2][%mdl 64]} 26. g3 {[%emt 0:00:18]} Rxa8 {[%emt 0:00:20]} 27. Qxa8 {[%emt 0:00:01]} hxg3 {[%emt 0:00:01]} 28. Ne2 {[%emt 0:00:03]} gxf2+ {[%emt 0:00:12]} (28... cxb5 29. Nxg3 (29. fxg3 $2 {too greedy.} Qh5 $19) 29... Qg4 30. Bc3 $14 (30. Qxb7 Qd1+ 31. Ngf1 Qg4+ 32. Ng3 Qd1+ 33. Ngf1 Qg4+ 34. Ng3 $11)) 29. Kxf2 {[%emt 0:00:01]} Qg2+ {[%emt 0:00:02]} ({And not} 29... cxb5 30. Nf4 (30. Ng3 Qc6 $11) 30... Qf5 31. Ba3 $11) 30. Ke1 {[%emt 0:00:00]} Bg4 {[%emt 0:00:09][%csl Gg4][%cal Rg2e2]} ({Weaker is} 30... cxb5 31. Qb8 $17) 31. Nd4 {[%emt 0:00:20]} Qg3+ {[%emt 0:00:02]} 32. Kf1 {[%emt 0:00:01]} Qxe3 {[%emt 0:00:02] Weighted Error Value: White=0.97/Black=0.05 (flawless)} 0-1

[Event "4th Tata Steel India Blitz Open 2022"]
[Site "Kolkota"]
[Date "2022.12.04"]
[Round "18.1"]
[White "Nakamura, Hikaru"]
[Black "Rameshbabu, Praggnanandhaa"]
[Result "1-0"]
[ECO "A20"]
[WhiteElo "2768"]
[BlackElo "2678"]
[Annotator "TA"]
[PlyCount "55"]
[EventDate "2022.11.29"]
[EventType "tourn"]
[EventCountry "IND"]
[SourceTitle "playchess.com"]
[Source "ChessBase"]
[SourceQuality "1"]
[TimeControl "180+2"]

{[%evp 9,55,10,16,13,18,7,19,9,25,31,16,18,44,14,19,9,22,-13,-13,-40,-35,-50,-47,-36,-27,-42,0,0,36,33,21,-20,126,70,214,154,166,169,389,378,506,466,1005,956,970,924,1982,1775]} 1. c4 {[%emt 0:00:01]} e5 {[%emt 0:00:01]} 2. a3 {[%emt 0:00:01]} Nf6 {[%emt 0:00:02]} 3. d3 {[%emt 0:00:01]} c6 {[%emt 0:00:10]} 4. Nf3 {[%emt 0:00:03]} Bd6 {[%emt 0:00:08]} 5. Bg5 {[%emt 0:00:01]} h6 {[%emt 0:00:06]} 6. Bh4 {[%emt 0:00:01] A20: English Opening: 1...e5.} Bc7 {[%emt 0:00:02]} 7. Nc3 {[%emt 0:00:10]} d6 {[%emt 0:00:01]} 8. e3 {[%emt 0:00:02] The position is equal.} Nbd7 {[%emt 0:00:03][%cal Bb8d7,Bd7f8,Bf8g6,Bg6f4,Bf4e6,Be6c5][%mdl 32]} 9. d4 {[%emt 0:00:01]} Qe7 {[%emt 0:00:05]} 10. Be2 {[%emt 0:00:05]} Nf8 {[%emt 0:00:26] [#]} 11. Qc2 $146 {[%emt 0:00:11][%cal Oc4c5]} ({Predecessor:} 11. c5 dxc5 12. dxe5 Bxe5 13. Nxe5 Qxe5 14. O-O Qe7 15. e4 Ng6 16. Bg3 Ne5 17. f4 {½-½ (72) Motuz,K (2311)-Jurcik,M (2339) Slovakia 2007}) 11... Ng6 {[%emt 0:00:04]} 12. Bg3 {[%emt 0:00:01]} O-O {[%emt 0:00:08]} 13. Bd3 {[%emt 0:00:09] [#]} Nf4 $1 {[%emt 0:00:16]} 14. Bf1 {[%emt 0:00:15] [#]} (14. Bxf4 {simplifies} exf4 15. e4 Bg4 16. O-O-O) 14... Bg4 $1 {[%emt 0:00:17]} 15. O-O-O {[%emt 0:00:12]} (15. exf4 exf4+) 15... exd4 {[%emt 0:00:08]} 16. Rxd4 {[%emt 0:00:25]} Ne6 {[%emt 0:00:02] Strongly threatening ...Bxf3.} 17. Rd1 {[%emt 0:00:01]} Nc5 {[%emt 0:00:18]} 18. Be2 {[%emt 0:00:15]} Bh5 {[%emt 0:00:18]} 19. Nh4 {[%emt 0:00:10] Against Bg6} Bxe2 {[%emt 0:00:01]} 20. Nxe2 {[%emt 0:00:03][%cal Bc3e2,Be2d4,Bd4f5,Bf5h6][%mdl 32]} (20. Nf5 $5 {[%cal Rf5e7]} Qd7 21. Nxe2 $11) 20... Nfe4 {[%emt 0:00:16] [#]} (20... g6 $1 $11 {remains equal.}) 21. Kb1 {[%emt 0:00:01]} (21. Nf5 $1 $16 {[%cal Rf5e7]} Qd7 22. Ned4) 21... a5 {[%emt 0:00:04] This move loses the game for Black.} ({Better is} 21... g6 $14) 22. Nf5 {[%emt 0:00:12]} Qf6 {[%emt 0:00:02]} 23. Ned4 {[%emt 0:00:01] Black must now prevent f3.} a4 $2 {[%emt 0:00:16]} (23... Rfe8 24. Bh4 Qg6) 24. f3 $18 {[%emt 0:00:02]} Nxg3 {[%emt 0:00:02]} 25. hxg3 {[%emt 0:00:01][%cal Of5g7] Hoping for Nxg7! White is clearly winning.} Rad8 {[%emt 0:00:12] [#]} (25... Ne6 $142 26. Nxe6 fxe6 27. Nxd6 Bxd6) 26. Nxh6+ $1 {[%emt 0:00:20][%mdl 512]} gxh6 {[%emt 0:00:04]} 27. Nf5 {[%emt 0:00:01]} d5 {[%emt 0:00:17]} 28. Nxh6+ {[%emt 0:00:18] Weighted Error Value: White=0.15 (very precise) /Black=0.50} 1-0